bitfinex-derivatives/quotes_BTCF0:USTF0_20250809
["timestamp","ask_amount","ask_price","bid_price","bid_amount"]
[1754735629127,0.39602238,117820.0,117810.0,0.2059919]
[1754735629517,0.39602238,117820.0,117810.0,0.21486249]
[1754735629920,0.39602238,117820.0,117810.0,0.57566249]
[1754735630819,0.39902238,117820.0,117810.0,0.57566249]
[1754735631621,0.39902238,117820.0,117810.0,0.91806025]
[1754735633832,0.39902238,117820.0,117810.0,0.98648217]
[1754735640428,0.39902238,117820.0,117810.0,0.64408441]
[1754735640831,0.39902238,117820.0,117810.0,0.98648217]
[1754735641934,0.39902238,117820.0,117810.0,0.64408441]
[1754735642634,0.39902238,117820.0,117810.0,0.28328441]
[1754735643031,0.74142014,117820.0,117810.0,0.25847441]
[1754735643230,0.74142014,117820.0,117810.0,0.07743192]
[1754735643437,0.74142014,117820.0,117810.0,0.06842192]
[1754735643631,0.82629184,117820.0,117800.0,1.569567]
[1754735643830,0.54658046,117810.0,117800.0,1.4846879]
[1754735644036,0.54658046,117810.0,117800.0,0.7365479]
[1754735644428,0.2041827,117810.0,117800.0,0.7365479]
[1754735645035,0.54658046,117810.0,117800.0,0.3757479]
[1754735645430,0.54858046,117810.0,117800.0,0.3757479]
[1754735645738,0.54858046,117810.0,117800.0,0.38481854]
[1754735646240,0.2061827,117810.0,117800.0,0.38481854]
[1754735647037,0.55058046,117810.0,117800.0,0.22575944]
[1754735647342,0.55058046,117810.0,117800.0,0.27301944]
[1754735647839,0.55058046,117810.0,117800.0,0.33950514]
[1754735648242,0.91138046,117810.0,117800.0,0.16043074]
[1754735648644,0.91138046,117810.0,117800.0,0.07555634]
[1754735648839,0.91138046,117810.0,117800.0,0.0664857]
[1754735649035,0.1310899,117800.0,117790.0,1.10610202]
[1754735649236,0.1310899,117800.0,117790.0,0.15072902]
[1754735649237,0.54461766,117800.0,117790.0,0.15072902]
[1754735649436,0.54461766,117800.0,117790.0,0.17250902]
[1754735649638,0.54461766,117800.0,117790.0,0.18797902]
[1754735649938,0.2022199,117800.0,117790.0,0.21257902]
[1754735650139,0.2032199,117800.0,117790.0,0.21257902]
[1754735650642,0.2042199,117800.0,117790.0,0.21257902]
[1754735652444,0.2042199,117800.0,117790.0,0.28076131]
[1754735652649,0.2042199,117800.0,117790.0,0.98395907]
[1754735652847,0.2042199,117800.0,117790.0,1.77895907]
[1754735653344,0.0868799,117800.0,117790.0,1.77895907]
[1754735654047,0.1107599,117800.0,117790.0,1.77895907]
[1754735654444,0.1892999,117800.0,117790.0,1.36470131]
[1754735654749,0.2042199,117800.0,117790.0,1.41196131]
[1754735654951,0.2042199,117800.0,117790.0,1.07576131]
[1754735657157,0.2042199,117800.0,117790.0,1.41815907]
[1754735658851,0.2042199,117800.0,117790.0,1.07576131]
[1754735666257,0.2042199,117800.0,117790.0,1.41815907]
[1754735667056,0.2042199,117800.0,117790.0,1.07576131]
[1754735667353,0.2042199,117800.0,117790.0,1.41815907]
[1754735668559,0.2042199,117800.0,117790.0,1.07576131]
[1754735668856,0.2042199,117800.0,117790.0,1.41815907]
[1754735669951,0.2042199,117800.0,117790.0,1.77895907]
[1754735670258,0.1892999,117800.0,117790.0,1.77895907]
[1754735670758,0.1675299,117800.0,117790.0,1.77895907]
[1754735671057,0.1260399,117800.0,117790.0,1.77895907]
[1754735671957,0.1260399,117800.0,117790.0,1.41815907]
[1754735672559,0.1260399,117800.0,117790.0,1.77895907]
[1754735673556,0.1260399,117800.0,117790.0,1.41815907]
[1754735673757,0.1260399,117800.0,117790.0,1.77895907]
[1754735675050,0.1260399,117800.0,117790.0,1.41815907]
[1754735675256,0.1260399,117800.0,117790.0,1.77895907]
[1754735676665,0.0868799,117800.0,117790.0,1.95049157]
[1754735677770,0.0868799,117800.0,117790.0,1.69352644]
[1754735683878,0.002,117800.0,117790.0,1.69352644]
[1754735684080,0.002,117800.0,117790.0,1.95049157]
[1754735684474,0.0868799,117800.0,117790.0,1.95049157]
[1754735684673,0.0868799,117800.0,117790.0,1.69352644]
[1754735690175,0.1094899,117800.0,117790.0,1.69352644]
[1754735690775,0.38205503,117800.0,117790.0,1.69352644]
[1754735690981,0.46102503,117800.0,117790.0,0.89852644]
[1754735691576,0.46102503,117800.0,117790.0,0.64156131]
[1754735692183,0.46102503,117800.0,117790.0,0.89852644]
[1754735692686,0.2040599,117800.0,117790.0,0.89852644]
[1754735692885,0.46102503,117800.0,117790.0,0.89852644]
[1754735693492,0.2040599,117800.0,117790.0,0.89852644]
[1754735693783,0.0868799,117800.0,117790.0,0.89852644]
[1754735694486,0.0868799,117800.0,117790.0,1.15549157]
[1754735694785,0.0868799,117800.0,117790.0,0.89852644]
[1754735695185,0.002,117800.0,117790.0,1.15549157]
[1754735696375,0.08688,117800.0,117790.0,1.15549157]
[1754735696879,0.08688,117800.0,117790.0,0.98414779]
[1754735697388,0.002,117800.0,117790.0,0.98414779]
[1754735698984,0.08688,117800.0,117790.0,0.98414779]
[1754735702080,0.08688,117800.0,117790.0,0.64156131]
[1754735702280,0.002,117800.0,117790.0,0.98414779]
[1754735703292,0.08688,117800.0,117790.0,0.98414779]
[1754735703888,0.002,117800.0,117790.0,0.98414779]
[1754735704282,0.0868799,117800.0,117790.0,0.98414779]
[1754735706488,0.002,117800.0,117790.0,0.98414779]
[1754735707089,0.08688,117800.0,117790.0,0.98414779]
[1754735710491,0.002,117800.0,117790.0,0.98414779]
[1754735710688,0.08688,117800.0,117790.0,0.98414779]
[1754735713594,0.12693,117800.0,117790.0,0.98414779]
[1754735713792,0.20676,117800.0,117790.0,0.98414779]
[1754735716998,0.20676,117800.0,117790.0,1.77750779]
[1754735717795,0.20676,117800.0,117790.0,1.85327383]
[1754735719202,0.20676,117800.0,117790.0,1.51068735]
[1754735719398,0.20676,117800.0,117790.0,1.85327383]
[1754735720702,0.20676,117800.0,117790.0,1.76767864]
[1754735723603,0.1923,117800.0,117790.0,1.76767864]
[1754735724003,0.12693,117800.0,117790.0,1.76767864]
[1754735724306,0.12693,117800.0,117790.0,2.02466993]
[1754735724705,0.15942,117800.0,117790.0,2.02466993]
[1754735724915,0.15942,117800.0,117790.0,1.76767864]
[1754735728203,0.46375129,117800.0,117790.0,0.97431934]
[1754735728408,0.46375129,117800.0,117790.0,1.6066261]
[1754735728708,0.72074258,117800.0,117790.0,1.5820261]
[1754735728908,0.72074258,117800.0,117790.0,1.6064861]
[1754735729207,0.46375129,117800.0,117790.0,1.6913733]
[1754735734210,1.08154258,117800.0,117790.0,0.25514201]
[1754735734404,0.72074258,117800.0,117790.0,0.27960201]
[1754735734608,0.46375129,117800.0,117790.0,0.5365933]
[1754735739413,0.20676,117800.0,117790.0,0.5365933]
[1754735739608,0.46375129,117800.0,117790.0,0.5365933]
[1754735740215,0.46375129,117800.0,117790.0,0.27960201]
[1754735740409,0.46375129,117800.0,117790.0,0.5365933]
[1754735740916,0.20676,117800.0,117790.0,0.5365933]
[1754735741117,0.46375129,117800.0,117790.0,0.5365933]
[1754735743515,1.08154258,117800.0,117790.0,0.17025481]
[1754735744215,1.08154258,117800.0,117770.0,0.48051]
[1754735744216,0.1238244,117780.0,117770.0,0.48051]
[1754735744413,0.71815698,117780.0,117770.0,0.55635352]
[1754735744608,1.09790238,117780.0,117770.0,0.19555352]
[1754735744914,1.09790238,117780.0,117770.0,0.11971]
[1754735745420,1.09790238,117780.0,117770.0,0.12835058]
[1754735745618,1.09790238,117780.0,117770.0,0.12271]
[1754735746713,0.92679406,117780.0,117770.0,0.18953188]
[1754735747308,0.5839198,117780.0,117770.0,0.18953188]
[1754735748616,0.92679406,117780.0,117770.0,0.18953188]
[1754735754422,0.92779406,117780.0,117770.0,0.18853188]
[1754735755224,0.92779406,117780.0,117770.0,0.18653188]
[1754735755424,0.92779406,117780.0,117770.0,0.27143338]
[1754735755634,0.92779406,117780.0,117770.0,0.18653188]
[1754735758217,0.92779406,117780.0,117770.0,0.27143348]
[1754735759029,1.0163198,117780.0,117770.0,0.61430774]
[1754735759626,1.35919406,117780.0,117770.0,0.27143348]
[1754735760226,1.71999406,117780.0,117770.0,0.16346188]
[1754735760933,1.35919406,117780.0,117770.0,0.16346188]
[1754735761236,1.71999406,117780.0,117770.0,0.16346188]
[1754735762034,1.71999406,117780.0,117770.0,0.13237188]
[1754735763731,1.71999406,117780.0,117770.0,0.06682188]
[1754735763934,0.1332916,117770.0,117760.0,0.3834396]
[1754735764133,0.2041816,117770.0,117760.0,0.3834396]
[1754735766036,0.2041816,117770.0,117760.0,0.2985309]
[1754735766238,0.2041816,117770.0,117760.0,0.2995309]
[1754735766440,0.2041816,117770.0,117760.0,0.36754718]
[1754735766633,0.46134061,117770.0,117760.0,0.62470619]
[1754735767831,0.46134061,117770.0,117760.0,0.62570619]
[1754735767832,0.2041816,117770.0,117760.0,0.62570619]
[1754735768031,0.46134061,117770.0,117760.0,0.62570619]
[1754735768834,0.46134061,117770.0,117760.0,0.54079749]
[1754735771343,0.2041816,117770.0,117760.0,0.7979565]
[1754735771542,0.2041816,117770.0,117760.0,1.1587565]
[1754735772144,0.2041816,117770.0,117760.0,0.7979565]
[1754735772544,0.46134061,117770.0,117760.0,0.7979565]
[1754735772743,0.46134061,117770.0,117760.0,1.1587565]
[1754735772944,0.46134061,117770.0,117760.0,0.90159749]
[1754735773146,0.46134061,117770.0,117760.0,1.1587565]
[1754735773841,0.46134061,117770.0,117760.0,0.90159749]
[1754735774036,0.46134061,117770.0,117760.0,0.54079749]
[1754735776146,0.46134061,117770.0,117760.0,0.28363848]
[1754735776348,0.46134061,117770.0,117760.0,0.54079749]
[1754735777033,0.46134061,117770.0,117760.0,0.19872978]
[1754735777538,0.46134061,117770.0,117760.0,0.17565978]
[1754735778241,0.71849962,117770.0,117760.0,0.17565978]
[1754735778642,1.07929962,117770.0,117760.0,0.17565978]
[1754735779041,0.2016259,117750.0,117740.0,0.5411331]
[1754735779234,0.73508791,117750.0,117740.0,0.53205352]
[1754735779445,0.73508791,117750.0,117740.0,0.10402981]
[1754735779742,0.73508791,117750.0,117740.0,0.01814981]
[1754735779947,1.09588791,117750.0,117740.0,0.01814981]
[1754735780144,0.73508791,117750.0,117740.0,0.00861981]
[1754735780349,1.09588791,117750.0,117740.0,0.006]
[1754735780647,0.92466547,117750.0,117740.0,0.006]
[1754735784550,0.92466547,117750.0,117740.0,0.07241783]
[1754735784850,0.92466547,117750.0,117740.0,0.19006103]
[1754735785050,0.92466547,117750.0,117740.0,0.23647103]
[1754735785351,0.92466547,117750.0,117740.0,0.15154783]
[1754735785951,0.92466547,117750.0,117740.0,0.13778783]
[1754735786353,0.92474437,117750.0,117740.0,0.15154783]
[1754735787246,0.56394437,117750.0,117740.0,0.15154783]
[1754735789353,0.92474437,117750.0,117740.0,0.15154783]
[1754735789744,0.92474437,117750.0,117740.0,0.10513783]
[1754735790053,0.92421001,117750.0,117740.0,0.07241783]
[1754735790752,0.92421001,117750.0,117740.0,0.006]
[1754735795354,0.0849376,117720.0,117710.0,0.55837433]
[1754735795561,0.56381455,117720.0,117710.0,0.58240433]
[1754735797561,0.22071897,117720.0,117710.0,0.58240433]
[1754735797761,0.20619897,117720.0,117710.0,0.58240433]
[1754735798261,0.20719897,117720.0,117710.0,0.58840433]
[1754735798462,0.10500897,117720.0,117710.0,0.5711817]
[1754735798765,0.91083013,117720.0,117710.0,0.01553]
[1754735798955,0.1316548,117710.0,117700.0,0.6251118]
[1754735799150,0.54767038,117710.0,117700.0,0.47975]
[1754735799355,0.54767038,117710.0,117700.0,0.53327888]
[1754735799555,0.2045748,117710.0,117700.0,0.53327888]
[1754735799760,0.2045748,117710.0,117700.0,0.4171691]
[1754735799963,0.54767038,117710.0,117700.0,0.4492591]
[1754735800468,0.54767038,117710.0,117700.0,0.4640591]
[1754735800666,0.2045748,117710.0,117700.0,0.4640591]
[1754735800867,0.54767038,117710.0,117700.0,0.4680591]
[1754735801563,0.54767038,117710.0,117700.0,0.4925991]
[1754735801564,0.2045748,117710.0,117700.0,0.4925991]
[1754735801772,0.54867038,117710.0,117700.0,0.4955991]
[1754735801971,0.2055748,117710.0,117700.0,0.4955991]
[1754735802376,0.54867038,117710.0,117700.0,0.4955991]
[1754735802567,0.54867038,117710.0,117700.0,0.3766491]
[1754735802767,0.54867038,117710.0,117700.0,0.0158491]
[1754735803067,0.54867038,117710.0,117700.0,0.10141]
[1754735803269,0.54867038,117710.0,117700.0,0.03901]
[1754735803572,0.54867038,117710.0,117700.0,0.0859]
[1754735803768,0.2055748,117710.0,117700.0,0.0859]
[1754735803968,0.54867038,117710.0,117700.0,0.09841]
[1754735804575,0.90847038,117710.0,117700.0,0.001]
[1754735804874,0.90847038,117710.0,117700.0,0.003]
[1754735805373,0.2045887,117690.0,117680.0,0.12008301]
[1754735805567,1.35732428,117690.0,117680.0,0.01698901]
[1754735805766,1.35732428,117690.0,117680.0,0.0001]
[1754735805973,1.35732428,117690.0,117680.0,0.05649]
[1754735806174,1.35732428,117690.0,117680.0,0.079]
[1754735806378,1.35732428,117690.0,117680.0,0.09451]
[1754735806674,1.35732428,117690.0,117680.0,0.2040159]
[1754735807375,1.35732428,117690.0,117680.0,0.11905]
[1754735807763,1.35732428,117690.0,117680.0,0.12005]
[1754735808170,1.35732428,117690.0,117680.0,0.1804759]
[1754735809077,1.35732428,117690.0,117680.0,0.09551]
[1754735809277,1.0142287,117690.0,117680.0,0.1814759]
[1754735809478,1.35732428,117690.0,117680.0,0.1814759]
[1754735809868,0.56631162,117690.0,117680.0,0.1814759]
[1754735810269,0.55140162,117690.0,117680.0,0.2060159]
[1754735810472,0.20830604,117690.0,117680.0,0.2060159]
[1754735810672,0.22321604,117690.0,117680.0,0.2060159]
[1754735811074,0.10358604,117690.0,117680.0,0.90991148]
[1754735811980,0.10358604,117690.0,117680.0,0.5668159]
[1754735812180,0.10358604,117690.0,117680.0,0.90991148]
[1754735812678,0.10358604,117690.0,117680.0,1.71875148]
[1754735812880,0.12660604,117690.0,117680.0,1.71875148]
[1754735813176,0.17331604,117690.0,117680.0,1.71875148]
[1754735813381,0.2045887,117690.0,117680.0,1.3756559]
[1754735814281,0.1588887,117690.0,117680.0,1.3756559]
[1754735814478,0.35905988,117700.0,117690.0,0.11895]
[1754735814783,0.35905988,117700.0,117690.0,0.90780428]
[1754735815084,0.38207988,117700.0,117690.0,0.90780428]
[1754735815282,0.38207988,117700.0,117690.0,0.5647087]
[1754735815785,0.36005988,117700.0,117690.0,0.90780428]
[1754735816084,0.19014478,117700.0,117690.0,0.90780428]
[1754735816787,0.10518908,117700.0,117690.0,0.90780428]
[1754735817185,0.02023658,117700.0,117690.0,0.9836478]
[1754735817386,0.10518798,117700.0,117690.0,0.90780428]
[1754735818786,0.10518798,117700.0,117690.0,0.9836478]
[1754735819581,0.10518798,117700.0,117690.0,0.52160222]
[1754735819785,0.56791356,117700.0,117690.0,0.5647087]
[1754735820188,0.22481798,117700.0,117690.0,0.5647087]
[1754735820376,0.12110798,117700.0,117690.0,0.90780428]
[1754735820581,0.10518798,117700.0,117690.0,0.90780428]
[1754735822090,0.14412798,117700.0,117690.0,0.90780428]
[1754735822391,0.22481798,117700.0,117690.0,0.90780428]
[1754735826178,0.14412798,117700.0,117690.0,0.90780428]
[1754735826892,0.10518798,117700.0,117690.0,0.90780428]
[1754735828893,0.10518798,117700.0,117690.0,0.5647087]
[1754735829091,0.10518798,117700.0,117690.0,0.90780428]
[1754735829792,0.12797798,117700.0,117690.0,0.90780428]
[1754735830695,0.12797798,117700.0,117690.0,0.5647087]
[1754735830895,0.12797798,117700.0,117690.0,0.90780428]
[1754735832395,0.12797798,117700.0,117690.0,0.9836478]
[1754735832695,0.12797798,117700.0,117690.0,0.90780428]
[1754735833397,0.12797798,117700.0,117690.0,0.9836478]
[1754735834596,0.12797798,117700.0,117690.0,0.64055222]
[1754735834795,0.12797798,117700.0,117690.0,0.9836478]
[1754735835191,0.12797798,117700.0,117690.0,0.64055222]
[1754735835397,0.12797798,117700.0,117690.0,0.9836478]
[1754735835696,0.10518798,117700.0,117690.0,0.9836478]
[1754735838097,0.12797798,117700.0,117690.0,0.9836478]
[1754735838901,0.10518798,117700.0,117690.0,0.9836478]
[1754735839591,0.12797798,117700.0,117690.0,0.9836478]
[1754735839991,0.10518798,117700.0,117690.0,0.9836478]
[1754735840298,0.10518798,117700.0,117690.0,0.90780428]
[1754735840995,0.02023658,117700.0,117690.0,0.90780428]
[1754735841897,0.02023658,117700.0,117690.0,1.01352648]
[1754735842096,0.276156,117720.0,117710.0,0.2019443]
[1754735842300,0.298946,117720.0,117710.0,2.14040713]
[1754735842598,0.330786,117720.0,117710.0,2.14040713]
[1754735842993,0.344376,117720.0,117710.0,2.14040713]
[1754735843200,0.333786,117720.0,117710.0,2.14140713]
[1754735843395,0.304946,117720.0,117710.0,2.14140713]
[1754735843699,0.0966399,117720.0,117710.0,2.14140713]
[1754735843893,0.0087,117720.0,117710.0,2.14040713]
[1754735844095,0.0117,117720.0,117710.0,2.21739041]
[1754735844697,0.0966371,117720.0,117710.0,2.14140713]
[1754735844897,0.0117,117720.0,117710.0,2.14140713]
[1754735845290,0.0087,117720.0,117710.0,2.14040713]
[1754735845499,0.0107,117720.0,117710.0,2.14140713]
[1754735846490,0.0077,117720.0,117710.0,2.14140713]
[1754735846694,0.0087,117720.0,117710.0,2.14140713]
[1754735847104,0.0936373,117720.0,117710.0,2.14140713]
[1754735847398,0.0936373,117720.0,117710.0,2.20216588]
[1754735847598,0.0087,117720.0,117710.0,2.20216588]
[1754735849797,0.0087,117720.0,117710.0,2.14140713]
[1754735850193,0.2893012,117740.0,117730.0,0.1643701]
[1754735850398,0.3120912,117740.0,117730.0,1.71162568]
[1754735850699,0.3439312,117740.0,117730.0,1.71162568]
[1754735850905,0.3899612,117740.0,117730.0,1.71162568]
[1754735851400,0.3929612,117740.0,117730.0,1.71262568]
[1754735852800,0.3959612,117740.0,117730.0,1.72117559]
[1754735853398,0.3949612,117740.0,117730.0,1.72117559]
[1754735854307,0.3949612,117740.0,117730.0,1.37808001]
[1754735854703,0.3949612,117740.0,117730.0,1.72117559]
[1754735856004,0.3929612,117740.0,117730.0,1.72017559]
[1754735856705,0.3929612,117740.0,117730.0,1.78092052]
[1754735857412,0.3929612,117740.0,117730.0,1.43782494]
[1754735857708,0.3929612,117740.0,117730.0,1.78092052]
[1754735858909,0.3929612,117740.0,117730.0,1.43782494]
[1754735859109,0.3475312,117740.0,117730.0,1.41410494]
[1754735859308,0.73966678,117740.0,117730.0,0.92990991]
[1754735859511,0.73966678,117740.0,117730.0,0.12410991]
[1754735859706,0.73966678,117740.0,117730.0,0.00854991]
[1754735859909,0.20483,117730.0,117720.0,0.6156002]
[1754735860215,0.54792558,117730.0,117720.0,0.7116102]
[1754735860408,0.54792558,117730.0,117720.0,0.7342702]
[1754735861307,0.20483,117730.0,117720.0,0.2885342]
[1754735861508,0.54892558,117730.0,117720.0,0.2885342]
[1754735862009,0.54892558,117730.0,117720.0,0.24479071]
[1754735862313,0.54892558,117730.0,117720.0,0.21002071]
[1754735864010,0.54892558,117730.0,117720.0,0.12508781]
[1754735864819,0.54892558,117730.0,117720.0,0.09342781]
[1754735865621,0.20583,117730.0,117720.0,0.09342781]
[1754735865918,0.54892558,117730.0,117720.0,0.17375781]
[1754735866118,0.20583,117730.0,117720.0,0.1652613]
[1754735866412,0.54892558,117730.0,117720.0,0.1513613]
[1754735866617,0.54892558,117730.0,117720.0,0.1165913]
[1754735867010,0.54892558,117730.0,117720.0,0.0939813]
[1754735867212,0.54892558,117730.0,117710.0,1.58357015]
[1754735867213,0.2048373,117720.0,117710.0,1.58357015]
[1754735867418,0.54793288,117720.0,117710.0,0.45681]
[1754735867624,0.54793288,117720.0,117710.0,0.3608]
[1754735867917,0.54793288,117720.0,117710.0,0.36938341]
[1754735868111,0.54793288,117720.0,117710.0,0.3608]
[1754735870419,0.54793288,117720.0,117710.0,0.3618]
[1754735870919,0.2048373,117720.0,117710.0,0.3618]
[1754735871320,0.54793288,117720.0,117710.0,0.3618]
[1754735873314,0.90873288,117720.0,117710.0,0.001]
[1754735880125,0.5656373,117720.0,117710.0,0.001]
[1754735880329,0.90873288,117720.0,117710.0,0.001]
[1754735880717,0.5656373,117720.0,117710.0,0.001]
[1754735880926,0.5656373,117720.0,117710.0,0.46276558]
[1754735881430,0.5656373,117720.0,117710.0,0.11967]
[1754735883228,0.90873288,117720.0,117710.0,0.11967]
[1754735883726,0.5656373,117720.0,117710.0,0.11967]
[1754735888729,0.90873288,117720.0,117710.0,0.11967]
[1754735890132,0.90873288,117720.0,117710.0,0.09701]
[1754735891035,0.90873288,117720.0,117710.0,0.06743]
[1754735891734,0.90873288,117720.0,117710.0,0.08158]
[1754735892728,0.90873288,117720.0,117710.0,0.03266]
[1754735894735,0.90873288,117720.0,117710.0,0.02361]
[1754735895033,1.25182846,117720.0,117710.0,0.001]
[1754735895234,0.90873288,117720.0,117710.0,0.001]
[1754735897037,1.25182846,117720.0,117710.0,0.001]
[1754735897232,0.90873288,117720.0,117710.0,0.001]
[1754735897437,0.927353,117720.0,117710.0,0.001]
[1754735897935,0.1318345,117710.0,117700.0,0.00871831]
[1754735898240,0.2015017,117700.0,117690.0,0.5391489]
[1754735898437,0.2015017,117700.0,117690.0,0.47783]
[1754735898838,0.54459728,117700.0,117690.0,0.47783]
[1754735899838,0.54459728,117700.0,117690.0,0.5677889]
[1754735900032,0.54459728,117700.0,117690.0,0.5766315]
[1754735900444,0.54459728,117700.0,117690.0,0.4916726]
[1754735900642,0.2015017,117700.0,117690.0,0.4916726]
[1754735900938,0.2025017,117700.0,117690.0,0.4956726]
[1754735901141,0.54559728,117700.0,117690.0,0.4956726]
[1754735901438,0.54559728,117700.0,117690.0,0.1112326]
[1754735901832,0.54559728,117700.0,117690.0,0.0178426]
[1754735902339,0.54459728,117700.0,117690.0,0.0148426]
[1754735902935,0.2015017,117700.0,117690.0,0.0148426]
[1754735903136,0.54459728,117700.0,117690.0,0.0098426]
[1754735903440,0.54459728,117700.0,117690.0,0.0108426]
[1754735903835,0.2015017,117700.0,117690.0,0.0108426]
[1754735904137,0.54459728,117700.0,117690.0,0.0108426]
[1754735904941,0.2015017,117700.0,117690.0,0.0108426]
[1754735905145,0.54459728,117700.0,117690.0,0.0108426]
[1754735907939,0.90539728,117700.0,117690.0,0.0108426]
[1754735910431,0.5623017,117700.0,117690.0,0.0522426]
[1754735910639,0.90539728,117700.0,117690.0,0.0886226]
[1754735910944,0.90539728,117700.0,117690.0,0.0744726]
[1754735911938,0.90539728,117700.0,117690.0,0.0886226]
[1754735912538,0.5623017,117700.0,117690.0,0.0886226]
[1754735912739,0.90539728,117700.0,117690.0,0.0886226]
[1754735914847,0.54459728,117700.0,117690.0,0.0886226]
[1754735915646,0.0849519,117700.0,117690.0,1.83172009]
[1754735915851,0.2015019,117700.0,117690.0,1.23375801]
[1754735916052,0.54459748,117700.0,117690.0,1.23375801]
[1754735916260,0.90539748,117700.0,117690.0,0.87295801]
[1754735916547,1.70279748,117700.0,117690.0,0.0108426]
[1754735918045,1.3597019,117700.0,117690.0,0.0108426]
[1754735918250,1.70279748,117700.0,117690.0,0.0108426]
[1754735919642,1.70279748,117700.0,117690.0,0.002]
[1754735920456,1.3597019,117700.0,117690.0,0.002]
[1754735920654,1.70279748,117700.0,117690.0,0.002]
[1754735931347,1.3597019,117700.0,117690.0,0.002]
[1754735931550,1.70279748,117700.0,117690.0,0.002]
[1754735937764,1.72150406,117700.0,117690.0,0.002]
[1754735940864,1.37840848,117700.0,117690.0,0.002]
[1754735941066,1.89352718,117700.0,117690.0,0.002]
[1754735942270,2.15108653,117700.0,117690.0,0.002]
[1754735942664,0.02508,117670.0,117660.0,0.3608]
[1754735942866,0.22084923,117660.0,117650.0,0.25552118]
[1754735943061,0.56430535,117660.0,117650.0,0.26431191]
[1754735943261,0.56430535,117660.0,117650.0,0.12683073]
[1754735944066,0.56430535,117660.0,117650.0,0.10334073]
[1754735944767,0.56430535,117660.0,117650.0,0.00879073]
[1754735944964,0.56430535,117660.0,117650.0,0.00946]
[1754735945272,0.1100678,117650.0,117640.0,0.10315345]
[1754735945470,0.1003178,117650.0,117640.0,0.27841866]
[1754735945769,0.1244478,117650.0,117640.0,0.63921866]
[1754735946283,0.1700251,117620.0,117600.0,0.07598328]
[1754735946465,0.84420292,117610.0,117600.0,0.08635]
[1754735946672,0.84420292,117610.0,117600.0,0.11896]
[1754735946874,0.48340292,117610.0,117600.0,0.11896]
[1754735947073,0.5007468,117610.0,117600.0,0.203984]
[1754735947263,0.5007468,117610.0,117600.0,0.11896]
[1754735947264,0.84420292,117610.0,117600.0,0.11896]
[1754735947769,0.5007468,117610.0,117600.0,0.203984]
[1754735947969,0.84420292,117610.0,117600.0,0.203984]
[1754735948170,0.84420292,117610.0,117600.0,0.11896]
[1754735948572,0.54943888,117620.0,117610.0,0.11911]
[1754735948777,0.01861378,117620.0,117610.0,1.70630292]
[1754735949269,0.7061009,117640.0,117630.0,0.1237623]
[1754735949477,0.64008371,117640.0,117630.0,0.2041123]
[1754735949771,0.47008271,117640.0,117630.0,0.54756842]
[1754735949965,0.02428391,117640.0,117630.0,1.34568842]
[1754735950172,0.02428391,117640.0,117630.0,1.81570442]
[1754735950365,0.01898391,117640.0,117630.0,1.81570442]
[1754735950773,0.02198391,117640.0,117630.0,1.81670442]
[1754735951076,0.3608,117650.0,117640.0,0.2041051]
[1754735951277,0.3608,117650.0,117640.0,0.54756122]
[1754735951575,0.3608,117650.0,117640.0,0.71756121]
[1754735952170,0.4792278,117650.0,117640.0,0.2041051]
[1754735952368,0.5408178,117650.0,117640.0,1.0022651]
[1754735952569,0.5697278,117650.0,117640.0,1.0022651]
[1754735952769,0.91618392,117650.0,117640.0,1.0032651]
[1754735952969,0.5727278,117650.0,117640.0,1.0032651]
[1754735953370,0.5488178,117650.0,117640.0,1.0032651]
[1754735954277,0.5488178,117650.0,117640.0,0.98646444]
[1754735954578,0.91618392,117650.0,117640.0,0.98646444]
[1754735954782,0.5727278,117650.0,117640.0,0.18830444]
[1754735955276,0.91618392,117650.0,117640.0,0.05106]
[1754735955580,0.91618392,117650.0,117640.0,0.02527]
[1754735955778,0.91618392,117650.0,117640.0,0.001]
[1754735956984,0.91618392,117650.0,117640.0,0.02527]
[1754735957176,0.91618392,117650.0,117640.0,0.2051051]
[1754735957376,0.4537878,117650.0,117640.0,0.54856122]
[1754735957677,0.0929878,117650.0,117640.0,0.54856122]
[1754735957878,0.0929878,117650.0,117640.0,1.41531003]
[1754735958076,0.008,117650.0,117640.0,1.77611003]
[1754735958379,0.008,117650.0,117640.0,2.60662231]
[1754735958773,0.008,117650.0,117640.0,2.32212107]
[1754735958974,0.2598312,117670.0,117660.0,0.2040907]
[1754735959179,0.2598312,117670.0,117660.0,1.4039817]
[1754735960274,0.0948735,117670.0,117660.0,1.4049817]
[1754735960783,0.0948735,117670.0,117660.0,1.0025707]
[1754735961776,0.1107635,117670.0,117660.0,0.21365608]
[1754735962077,0.9770245,117670.0,117660.0,0.92551538]
[1754735962284,0.9770245,117670.0,117660.0,0.21365598]
[1754735962478,0.9770245,117670.0,117660.0,0.12867538]
[1754735963786,0.9820245,117670.0,117660.0,0.001]
[1754735966779,0.9820245,117670.0,117660.0,0.1428606]
[1754735967083,0.4765635,117670.0,117660.0,0.6075016]
[1754735967280,0.4606735,117670.0,117660.0,0.6075016]
[1754735967586,0.0149,117670.0,117660.0,0.6075016]
[1754735967884,0.01,117670.0,117660.0,0.6075016]
[1754735968185,0.0949733,117670.0,117660.0,0.6075016]
[1754735968385,0.0949733,117670.0,117660.0,0.2050906]
[1754735968793,0.0899733,117670.0,117660.0,0.2040906]
[1754735968985,0.005,117670.0,117660.0,0.2050906]
[1754735969581,0.0899733,117670.0,117660.0,0.2050906]
[1754735970085,0.0899733,117670.0,117660.0,0.6075016]
[1754735970686,0.0849733,117670.0,117660.0,0.4893916]
[1754735971086,0.0849733,117670.0,117660.0,0.0869806]
[1754735971983,0.0849733,117670.0,117660.0,0.8827406]
[1754735972186,0.8481843,117670.0,117660.0,0.8827406]
[1754735973293,0.4457733,117670.0,117660.0,0.8827406]
[1754735974991,0.4457733,117670.0,117660.0,0.0869806]
[1754735975294,0.4457733,117670.0,117660.0,0.8827006]
[1754735983398,0.78920591,117670.0,117660.0,0.8827006]
[1754735985504,0.4457733,117670.0,117660.0,0.8827006]
[1754735985697,0.78920591,117670.0,117660.0,0.8827006]
[1754735988011,0.4457733,117670.0,117660.0,0.8827006]
[1754735988308,0.78920591,117670.0,117660.0,0.8827006]
[1754735989507,0.80865359,117670.0,117660.0,0.8827006]
[1754735995413,0.4457733,117670.0,117660.0,0.8827006]
[1754735995617,0.4457733,117670.0,117660.0,1.22613321]
[1754735997413,0.4457733,117670.0,117660.0,0.8827006]
[1754735998515,0.78920591,117670.0,117660.0,0.8827006]
[1754736000819,0.80867391,117670.0,117660.0,0.0869806]
[1754736001020,0.80867391,117670.0,117660.0,0.8824606]
[1754736001519,0.80867391,117670.0,117660.0,0.79748]
[1754736002313,0.80867391,117670.0,117660.0,0.002]
[1754736002518,0.78920591,117670.0,117660.0,0.002]
[1754736004409,0.78920591,117670.0,117660.0,0.0869807]
[1754736004813,0.78920591,117670.0,117660.0,0.002]
[1754736005013,0.78920591,117670.0,117660.0,0.0869808]
[1754736005419,0.4457733,117670.0,117660.0,0.0869808]